[Event "Navidad Barcelona IM2 2024"]
[Site "Barcelona"]
[Date "2024.12.28"]
[Round "4.1"]
[White "Cruz, Jonathan"]
[Black "Serrahima Susany, Ramon"]
[Result "1-0"]
[ECO "A13"]
[WhiteElo "2342"]
[BlackElo "2020"]
[Annotator "RC"]
[PlyCount "57"]
[EventDate "2024.12.26"]
[EventCountry "ESP"]
[SourceTitle "playchess.com"]
[Source "ChessBase"]
[SourceQuality "1"]
[TimeControl "5400+30"]

1. Nf3 {[%emt 0:01:14]} d5 {[%emt 0:00:12]} 2. b3 {[%emt 0:01:39]} Nf6 {[%emt 0:00:27]} 3. Bb2 {[%emt 0:01:37]} e6 {[%emt 0:00:22]} 4. c4 {[%emt 0:05:12]} b6 {[%emt 0:00:18]} 5. g3 {[%emt 0:02:00]} Bb7 {[%emt 0:00:14]} 6. Bg2 {[%emt 0:00:19]} Nbd7 {[%emt 0:00:21]} 7. O-O {[%emt 0:01:49]} Bd6 {[%emt 0:00:35]} 8. Nc3 {[%emt 0:03:28]} a6 {[%emt 0:00:10]} 9. cxd5 {[%emt 0:01:49]} exd5 {[%emt 0:00:25]} 10. Nh4 {[%emt 0:00:48]} h5 {[%emt 0:20:14]} 11. d3 {[%emt 0:06:41]} Ne5 {[%emt 0:05:49]} 12. e4 {[%emt 0:10:17]} dxe4 {[%emt 0:04:12]} 13. dxe4 {[%emt 0:04:50]} g6 {[%emt 0:13:50]} 14. Qe2 {[%emt 0:05:06]} O-O {[%emt 0:13:01]} 15. Kh1 {[%emt 0:00:49]} Ned7 {[%emt 0:08:41]} 16. f4 {[%emt 0:05:21]} Be7 {[%emt 0:08:25]} 17. Rad1 {[%emt 0:08:59]} Qe8 {[%emt 0:00:15]} 18. e5 {[%emt 0:07:40]} Bxg2+ {[%emt 0:00:29]} 19. Nxg2 {[%emt 0:00:21]} Ng4 {[%emt 0:01:39]} 20. Nd5 {[%emt 0:06:04]} Bd8 {[%emt 0:00:49]} 21. Ba3 {[%emt 0:01:49]} c5 {[%emt 0:02:10]} 22. Qf3 {[%emt 0:03:39]} Rc8 {[%emt 0:00:44]} 23. Nc3 {[%emt 0:00:37]} Be7 {[%emt 0:02:36]} 24. Qb7 {[%emt 0:01:02]} Nb8 {[%emt 0:02:48]} 25. Nd5 {[%emt 0:02:11]} Nc6 {[%emt 0:00:08]} 26. Qxb6 {[%emt 0:03:04]} Nb8 {[%emt 0:03:37]} 27. Qb7 {[%emt 0:02:55]} Nc6 {[%emt 0:00:14]} 28. h3 {[%emt 0:02:19]} Nh6 {[%emt 0:00:10]} 29. Bxc5 {[%emt 0:00:29]} 1-0

[Event "Navidad Barcelona IM2 2024"]
[Site "Barcelona"]
[Date "2024.12.28"]
[Round "4.2"]
[White "Martin Barcelo, Carles"]
[Black "Gonzalez, Raul Omar"]
[Result "1-0"]
[ECO "B52"]
[WhiteElo "2257"]
[BlackElo "2131"]
[Annotator "RC"]
[PlyCount "73"]
[EventDate "2024.12.26"]
[EventCountry "ESP"]
[SourceTitle "playchess.com"]
[Source "ChessBase"]
[SourceQuality "1"]
[TimeControl "5400+30"]

1. e4 {[%emt 0:02:29]} c5 {[%emt 0:00:09]} 2. Nf3 {[%emt 0:00:27]} d6 {[%emt 0:00:07]} 3. Bb5+ {[%emt 0:00:32]} Bd7 {[%emt 0:00:13]} 4. c4 {[%emt 0:00:18]} Nc6 {[%emt 0:00:53]} 5. Nc3 {[%emt 0:01:35]} e5 {[%emt 1:31:38]} 6. d3 {[%emt 0:02:14]} Be7 {[%emt 0:00:00]} 7. O-O {[%emt 0:01:28]} Nf6 {[%emt 0:00:00]} 8. Nh4 {[%emt 0:00:38]} Nd4 {[%emt 0:00:00]} 9. Nf5 {[%emt 0:03:34]} Nxf5 {[%emt 0:00:00]} 10. exf5 {[%emt 0:00:10]} Bxb5 {[%emt 0:00:00]} 11. Nxb5 {[%emt 0:00:40]} O-O {[%emt 0:00:00]} 12. Qf3 {[%emt 0:00:55]} Qd7 {[%emt 0:00:00]} 13. Nc3 {[%emt 0:00:57]} h6 {[%emt 0:00:00]} 14. Re1 {[%emt 0:02:03]} Rfe8 {[%emt 0:00:00]} 15. h4 {[%emt 0:08:20]} h5 {[%emt 0:05:00]} 16. Bg5 {[%emt 0:05:27]} Ng4 {[%emt 0:00:00]} 17. Nd5 {[%emt 0:02:54]} f6 {[%emt 0:00:00]} 18. Bd2 {[%emt 0:01:19]} Bd8 {[%emt 0:00:00]} 19. Qe4 {[%emt 0:02:34]} Kh7 {[%emt 0:00:00]} 20. f3 {[%emt 0:08:05]} Nh6 {[%emt 0:00:00]} 21. Bxh6 {[%emt 0:00:50]} gxh6 {[%emt 0:00:00]} 22. Kh2 {[%emt 0:03:05]} Rg8 {[%emt 0:00:00]} 23. Rg1 {[%emt 0:06:18]} Qf7 {[%emt 0:00:00]} 24. g4 {[%emt 0:02:12]} hxg4 {[%emt 0:00:00]} 25. Rxg4 {[%emt 0:01:59]} Rxg4 {[%emt 0:00:00]} 26. Qxg4 {[%emt 0:00:10]} b5 {[%emt 0:00:00]} 27. Rg1 {[%emt 0:09:03]} bxc4 {[%emt 0:00:00]} 28. dxc4 {[%emt 0:00:29]} Rb8 {[%emt 0:00:00]} 29. b3 {[%emt 0:00:06]} Rb7 {[%emt 0:00:00]} 30. Ne3 {[%emt 0:01:21]} Ba5 {[%emt 0:00:00]} 31. Qg6+ {[%emt 0:10:47]} Qxg6 {[%emt 0:00:00]} 32. fxg6+ {[%emt 0:00:04]} Kg8 {[%emt 0:00:00]} 33. Rg2 {[%emt 0:00:24]} e4 {[%emt 0:00:00]} 34. fxe4 {[%emt 0:01:33]} Bc3 {[%emt 0:00:00]} 35. Kg3 {[%emt 0:03:51]} Re7 {[%emt 0:00:00]} 36. Kf3 {[%emt 0:04:39]} h5 {[%emt 0:00:55]} 37. Nd5 {[%emt 0:00:27]} 1-0

[Event "Navidad Barcelona IM2 2024"]
[Site "Barcelona"]
[Date "2024.12.28"]
[Round "4.3"]
[White "Abreu Sanchez, Leonel Jesus"]
[Black "Ayats Llobera, Gerard"]
[Result "0-1"]
[ECO "E68"]
[WhiteElo "1857"]
[BlackElo "2451"]
[Annotator "RC"]
[PlyCount "94"]
[EventDate "2024.12.26"]
[EventCountry "ESP"]
[SourceTitle "playchess.com"]
[Source "ChessBase"]
[SourceQuality "1"]
[TimeControl "5400+30"]

1. d4 {[%emt 0:00:04]} Nf6 {[%emt 0:00:13]} 2. c4 {[%emt 0:00:22]} g6 {[%emt 0:00:16]} 3. Nc3 {[%emt 0:00:31]} Bg7 {[%emt 0:00:09]} 4. Nf3 {[%emt 0:00:27]} O-O {[%emt 0:00:17]} 5. g3 {[%emt 0:00:45]} d6 {[%emt 0:02:48]} 6. Bg2 {[%emt 0:00:57]} Nbd7 {[%emt 0:00:11]} 7. O-O {[%emt 0:00:37]} e5 {[%emt 0:00:02]} 8. e4 {[%emt 0:00:58]} Re8 {[%emt 0:01:29]} 9. h3 {[%emt 0:03:00]} exd4 {[%emt 0:01:02]} 10. Nxd4 {[%emt 0:00:11]} Nc5 {[%emt 0:00:08]} 11. Re1 {[%emt 0:01:48]} Nfd7 {[%emt 0:00:28]} 12. Rb1 {[%emt 0:03:51]} Ne5 {[%emt 0:01:10]} 13. Bf1 {[%emt 0:05:28]} Ned3 {[%emt 0:01:53]} 14. Bxd3 {[%emt 0:11:12]} Bxd4 {[%emt 0:00:12]} 15. Bf1 {[%emt 0:00:39]} Bxc3 {[%emt 0:06:19]} 16. bxc3 {[%emt 0:00:57]} Rxe4 {[%emt 0:00:13]} 17. Bh6 {[%emt 0:01:30]} Rxe1 {[%emt 0:02:53]} 18. Qxe1 {[%emt 0:01:25]} Bf5 {[%emt 0:00:30]} 19. Rd1 {[%emt 0:01:25]} Qf6 {[%emt 0:06:54]} 20. Qe3 {[%emt 0:05:53]} Qe5 {[%emt 0:02:13]} 21. Re1 {[%emt 0:08:53]} Qxe3 {[%emt 0:02:10]} 22. Rxe3 {[%emt 0:00:08]} Be6 {[%emt 0:00:48]} 23. g4 {[%emt 0:02:03]} Re8 {[%emt 0:01:57]} 24. f3 {[%emt 0:07:41]} f6 {[%emt 0:01:38]} 25. Bf4 {[%emt 0:00:28]} Kf7 {[%emt 0:01:21]} 26. Kf2 {[%emt 0:00:26]} g5 {[%emt 0:00:14]} 27. Bg3 {[%emt 0:00:29]} h6 {[%emt 0:01:12]} 28. Be2 {[%emt 0:03:30]} Na4 {[%emt 0:01:02]} 29. a3 {[%emt 0:03:40]} Nb6 {[%emt 0:06:17]} 30. Re4 {[%emt 0:04:34]} Na4 {[%emt 0:01:44]} 31. Re3 {[%emt 0:01:00]} Bd7 {[%emt 0:02:51]} 32. Bd1 {[%emt 0:07:17]} Rxe3 {[%emt 0:08:07]} 33. Kxe3 {[%emt 0:01:40]} Nxc3 {[%emt 0:00:36]} 34. Bc2 {[%emt 0:03:16]} b6 {[%emt 0:03:16]} 35. Be1 {[%emt 0:03:00]} Na4 {[%emt 0:00:11]} 36. Bxa4 {[%emt 0:00:10]} Bxa4 {[%emt 0:00:04]} 37. h4 {[%emt 0:00:08]} Bb3 {[%emt 0:00:37]} 38. Kd3 {[%emt 0:00:32]} Ke6 {[%emt 0:00:25]} 39. hxg5 {[%emt 0:00:48]} hxg5 {[%emt 0:01:42]} 40. Bc3 {[%emt 0:01:16]} a6 {[%emt 0:00:26]} 41. Bd4 {[%emt 0:00:17]} c5 {[%emt 0:00:52]} 42. Bf2 {[%emt 0:01:34]} b5 {[%emt 0:01:21]} 43. cxb5 {[%emt 0:00:08]} axb5 {[%emt 0:00:04]} 44. Bg3 {[%emt 0:00:48]} Bd1 {[%emt 0:00:27]} 45. Ke3 {[%emt 0:00:43]} d5 {[%emt 0:00:08]} 46. Bf2 {[%emt 0:02:19]} d4+ {[%emt 0:00:09]} 47. Ke4 {[%emt 0:00:10]} Bc2# {[%emt 0:00:05]} 0-1

[Event "Navidad Barcelona IM2 2024"]
[Site "Barcelona"]
[Date "2024.12.28"]
[Round "4.4"]
[White "Cruz, Filemon"]
[Black "Rojas Keim, Luis"]
[Result "0-1"]
[ECO "A62"]
[WhiteElo "2234"]
[BlackElo "2326"]
[Annotator "RC"]
[PlyCount "64"]
[EventDate "2024.12.26"]
[EventCountry "ESP"]
[SourceTitle "playchess.com"]
[Source "ChessBase"]
[SourceQuality "1"]
[TimeControl "5400+30"]

1. Nf3 {[%emt 0:08:06]} Nf6 {[%emt 0:00:14]} 2. d4 {[%emt 0:01:30]} c5 {[%emt 0:00:19]} 3. d5 {[%emt 0:00:23]} d6 {[%emt 0:00:07]} 4. c4 {[%emt 0:00:44]} g6 {[%emt 0:00:17]} 5. Nc3 {[%emt 0:01:24]} Bg7 {[%emt 0:00:22]} 6. g3 {[%emt 0:01:26]} O-O {[%emt 0:00:24]} 7. Bg2 {[%emt 0:00:24]} e6 {[%emt 0:02:37]} 8. O-O {[%emt 0:00:42]} exd5 {[%emt 0:00:07]} 9. cxd5 {[%emt 0:00:11]} Na6 {[%emt 0:00:43]} 10. e4 {[%emt 0:00:40]} Bg4 {[%emt 0:00:45]} 11. h3 {[%emt 0:03:12]} Bxf3 {[%emt 0:00:07]} 12. Qxf3 {[%emt 0:02:19]} Nd7 {[%emt 0:03:29]} 13. Qd1 {[%emt 0:04:06]} Rb8 {[%emt 0:01:09]} 14. f4 {[%emt 0:14:27]} c4 {[%emt 0:09:29]} 15. Kh2 {[%emt 0:03:34]} b5 {[%emt 0:01:04]} 16. e5 {[%emt 0:13:03]} dxe5 {[%emt 0:08:30]} 17. f5 {[%emt 0:02:27]} Nac5 {[%emt 0:01:55]} 18. d6 {[%emt 0:01:28]} Nd3 {[%emt 0:05:26]} 19. Nd5 {[%emt 0:03:39]} Nf6 {[%emt 0:02:54]} 20. Ne7+ {[%emt 0:14:01]} Kh8 {[%emt 0:00:08]} 21. Nc6 {[%emt 0:00:23]} Qxd6 {[%emt 0:00:08]} 22. Nxb8 {[%emt 0:00:21]} Rxb8 {[%emt 0:00:58]} 23. Qe2 {[%emt 0:04:58]} Re8 {[%emt 0:03:41]} 24. Bg5 {[%emt 0:04:26]} e4 {[%emt 0:04:47]} 25. Qe3 {[%emt 0:07:53]} Nh5 {[%emt 0:07:00]} 26. f6 {[%emt 0:00:33]} Bxf6 {[%emt 0:02:45]} 27. Rxf6 {[%emt 0:03:59]} Nxf6 {[%emt 0:00:30]} 28. Rf1 {[%emt 0:00:15]} Re6 {[%emt 0:06:40]} 29. Qxa7 {[%emt 0:00:40]} Kg7 {[%emt 0:01:10]} 30. Be3 {[%emt 0:03:32]} Ne5 {[%emt 0:04:05]} 31. Bf4 {[%emt 0:00:41]} Qd3 {[%emt 0:03:30]} 32. Qf2 {[%emt 0:00:31]} Neg4+ {[%emt 0:00:12]} 0-1

[Event "Navidad Barcelona IM2 2024"]
[Site "Barcelona"]
[Date "2024.12.28"]
[Round "4.5"]
[White "Masague Artero, Guerau"]
[Black "Fuentes Guinot, Alejandro"]
[Result "1-0"]
[ECO "D38"]
[WhiteElo "2265"]
[BlackElo "2262"]
[Annotator "RC"]
[PlyCount "135"]
[EventDate "2024.12.26"]
[EventCountry "ESP"]
[SourceTitle "playchess.com"]
[Source "ChessBase"]
[SourceQuality "1"]
[TimeControl "5400+30"]

1. c4 {[%emt 0:00:04]} e6 {[%emt 0:00:12]} 2. Nc3 {[%emt 0:00:09]} d5 {[%emt 0:00:09]} 3. d4 {[%emt 0:00:06]} Nf6 {[%emt 0:00:09]} 4. cxd5 {[%emt 0:00:05]} exd5 {[%emt 0:00:11]} 5. Bg5 {[%emt 0:00:07]} Bb4 {[%emt 0:00:16]} 6. e3 {[%emt 0:04:42]} h6 {[%emt 0:00:16]} 7. Bxf6 {[%emt 0:02:50]} Qxf6 {[%emt 0:00:12]} 8. Qa4+ {[%emt 0:01:34]} Nc6 {[%emt 0:00:25]} 9. Nf3 {[%emt 0:02:52]} O-O {[%emt 0:10:35]} 10. Be2 {[%emt 0:00:21]} Be6 {[%emt 0:13:06]} 11. a3 {[%emt 0:00:25]} Bd6 {[%emt 0:06:58]} 12. Nb5 {[%emt 0:00:20]} a6 {[%emt 0:02:00]} 13. Nxd6 {[%emt 0:00:12]} cxd6 {[%emt 0:00:05]} 14. O-O {[%emt 0:02:27]} Rfc8 {[%emt 0:05:34]} 15. Rfc1 {[%emt 0:01:31]} b5 {[%emt 0:02:23]} 16. Qd1 {[%emt 0:02:52]} Qd8 {[%emt 0:02:54]} 17. Ne1 {[%emt 0:02:36]} Na5 {[%emt 0:10:18]} 18. Nd3 {[%emt 0:06:09]} Nc4 {[%emt 0:00:44]} 19. b3 {[%emt 0:01:26]} Nb6 {[%emt 0:00:22]} 20. Qd2 {[%emt 0:06:16]} a5 {[%emt 0:08:23]} 21. Nf4 {[%emt 0:04:05]} Qd7 {[%emt 0:03:01]} 22. h4 {[%emt 0:05:59]} Qe8 {[%emt 0:06:46]} 23. h5 {[%emt 0:04:15]} Bd7 {[%emt 0:01:21]} 24. Bf3 {[%emt 0:09:33]} Bc6 {[%emt 0:01:37]} 25. Rc2 {[%emt 0:05:52]} Qd7 {[%emt 0:04:06]} 26. Rac1 {[%emt 0:03:37]} a4 {[%emt 0:03:31]} 27. Qb4 {[%emt 0:06:55]} axb3 {[%emt 0:01:34]} 28. Qxb3 {[%emt 0:00:14]} Nc4 {[%emt 0:03:38]} 29. Bxd5 {[%emt 0:01:36]} Bxd5 {[%emt 0:05:30]} 30. Nxd5 {[%emt 0:00:27]} Rcb8 {[%emt 0:00:23]} 31. Ra2 {[%emt 0:04:40]} Qb7 {[%emt 0:00:54]} 32. Nf4 {[%emt 0:01:25]} Ra4 {[%emt 0:02:10]} 33. Rb1 {[%emt 0:01:09]} Qa8 {[%emt 0:02:15]} 34. Rba1 {[%emt 0:02:28]} Qc6 {[%emt 0:00:54]} 35. Ne2 {[%emt 0:01:49]} Na5 {[%emt 0:01:33]} 36. Qd3 {[%emt 0:02:58]} Rc4 {[%emt 0:00:42]} 37. Rb2 {[%emt 0:00:40]} Qd5 {[%emt 0:01:43]} 38. Nf4 {[%emt 0:01:13]} Qc6 {[%emt 0:00:12]} 39. Rab1 {[%emt 0:02:08]} Rc1+ {[%emt 0:01:08]} 40. Kh2 {[%emt 0:00:15]} Rxb1 {[%emt 0:00:16]} 41. Rxb1 {[%emt 0:00:45]} Rb7 {[%emt 0:01:50]} 42. Rb4 {[%emt 0:00:30]} d5 {[%emt 0:00:40]} 43. Qf5 {[%emt 0:00:33]} Nc4 {[%emt 0:00:18]} 44. a4 {[%emt 0:01:30]} bxa4 {[%emt 0:00:30]} 45. Rxa4 {[%emt 0:00:07]} Rd7 {[%emt 0:01:16]} 46. Ra8+ {[%emt 0:02:47]} Qxa8 {[%emt 0:00:00]} 47. Qxd7 {[%emt 0:00:02]} Nb6 {[%emt 0:00:00]} 48. Qd6 {[%emt 0:00:02]} Qb7 {[%emt 0:00:23]} 49. g4 {[%emt 0:01:21]} Kh7 {[%emt 0:00:29]} 50. Kg3 {[%emt 0:00:18]} Kg8 {[%emt 0:00:20]} 51. Kg2 {[%emt 0:02:09]} Kh7 {[%emt 0:00:31]} 52. Ng6 {[%emt 0:00:46]} Qc8 {[%emt 0:00:57]} 53. Ne5 {[%emt 0:01:55]} Nc4 {[%emt 0:00:35]} 54. Qxd5 {[%emt 0:00:22]} Nxe5 {[%emt 0:00:22]} 55. Qe4+ {[%emt 0:00:29]} f5 {[%emt 0:00:42]} 56. Qxe5 {[%emt 0:00:10]} fxg4 {[%emt 0:00:05]} 57. d5 {[%emt 0:00:34]} Qa8 {[%emt 0:00:13]} 58. e4 {[%emt 0:00:06]} Kh8 {[%emt 0:00:16]} 59. d6 {[%emt 0:00:07]} Qa3 {[%emt 0:00:05]} 60. Qe8+ {[%emt 0:01:01]} Kh7 {[%emt 0:00:04]} 61. Qf8 {[%emt 0:01:59]} g6 {[%emt 0:02:24]} 62. Qf7+ {[%emt 0:00:29]} Kh8 {[%emt 0:00:04]} 63. Qe8+ {[%emt 0:00:01]} Kg7 {[%emt 0:00:19]} 64. Qxg6+ {[%emt 0:00:06]} Kf8 {[%emt 0:00:26]} 65. Qxh6+ {[%emt 0:00:13]} Kg8 {[%emt 0:00:50]} 66. Qg5+ {[%emt 0:01:13]} Kh7 {[%emt 0:00:16]} 67. Qxg4 {[%emt 0:00:15]} Qd3 {[%emt 0:01:05]} 68. h6 {[%emt 0:00:20]} 1-0

[Event "Navidad Barcelona IM2 2024"]
[Site "Barcelona"]
[Date "2024.12.28"]
[Round "5.1"]
[White "Fuentes Guinot, Alejandro"]
[Black "Cruz, Jonathan"]
[Result "0-1"]
[ECO "D94"]
[WhiteElo "2262"]
[BlackElo "2342"]
[Annotator "RC"]
[PlyCount "56"]
[EventDate "2024.12.26"]
[EventCountry "ESP"]
[SourceTitle "playchess.com"]
[Source "ChessBase"]
[SourceQuality "1"]
[TimeControl "5400+30"]

1. d4 {[%emt 0:00:07]} Nf6 {[%emt 0:00:35]} 2. c4 {[%emt 0:00:10]} g6 {[%emt 0:01:14]} 3. Nc3 {[%emt 0:00:19]} d5 {[%emt 0:00:17]} 4. Nf3 {[%emt 0:00:17]} Bg7 {[%emt 0:01:23]} 5. e3 {[%emt 0:00:11]} O-O {[%emt 0:01:49]} 6. Be2 {[%emt 0:00:15]} c5 {[%emt 0:01:52]} 7. O-O {[%emt 0:00:23]} cxd4 {[%emt 0:07:57]} 8. exd4 {[%emt 0:00:27]} Nc6 {[%emt 0:01:23]} 9. h3 {[%emt 0:02:14]} Be6 {[%emt 0:03:19]} 10. Ne5 {[%emt 0:10:02]} dxc4 {[%emt 0:05:25]} 11. Nxc6 {[%emt 0:01:30]} bxc6 {[%emt 0:00:13]} 12. Na4 {[%emt 0:00:38]} Nd7 {[%emt 0:07:01]} 13. Be3 {[%emt 0:03:59]} Nb6 {[%emt 0:03:39]} 14. Rc1 {[%emt 0:03:24]} Bd5 {[%emt 0:05:50]} 15. Qc2 {[%emt 0:03:25]} Qb8 {[%emt 0:02:36]} 16. Nxb6 {[%emt 0:10:58]} Qxb6 {[%emt 0:02:39]} 17. Rfd1 {[%emt 0:00:49]} Rfb8 {[%emt 0:04:01]} 18. Rb1 {[%emt 0:01:16]} Qa6 {[%emt 0:07:30]} 19. a3 {[%emt 0:02:47]} Qb5 {[%emt 0:00:45]} 20. Rd2 {[%emt 0:04:17]} e5 {[%emt 0:05:17]} 21. Qc3 {[%emt 0:08:48]} Qb3 {[%emt 0:08:56]} 22. Qxb3 {[%emt 0:05:19]} Rxb3 {[%emt 0:02:49]} 23. dxe5 {[%emt 0:11:17]} c3 {[%emt 0:02:35]} 24. Rd4 {[%emt 0:00:54]} Bxe5 {[%emt 0:02:32]} 25. Bd1 {[%emt 0:00:55]} Rxb2 {[%emt 0:01:46]} 26. Rc1 {[%emt 0:00:36]} Bxd4 {[%emt 0:04:42]} 27. Bxd4 {[%emt 0:00:07]} Ra2 {[%emt 0:00:48]} 28. Rxc3 {[%emt 0:00:28]} Rd2 {[%emt 0:00:11]} 0-1

[Event "Navidad Barcelona IM2 2024"]
[Site "Barcelona"]
[Date "2024.12.28"]
[Round "5.2"]
[White "Rojas Keim, Luis"]
[Black "Masague Artero, Guerau"]
[Result "0-1"]
[ECO "C45"]
[WhiteElo "2326"]
[BlackElo "2265"]
[Annotator "RC"]
[PlyCount "58"]
[EventDate "2024.12.26"]
[EventCountry "ESP"]
[SourceTitle "playchess.com"]
[Source "ChessBase"]
[SourceQuality "1"]
[TimeControl "5400+30"]

1. e4 {[%emt 0:00:03]} e5 {[%emt 0:07:01]} 2. Nf3 {[%emt 0:00:04]} Nc6 {[%emt 0:00:06]} 3. d4 {[%emt 0:00:05]} exd4 {[%emt 0:00:05]} 4. Nxd4 {[%emt 0:00:34]} Qf6 {[%emt 0:00:12]} 5. Be3 {[%emt 0:04:27]} Bc5 {[%emt 0:02:04]} 6. c3 {[%emt 0:01:20]} Nge7 {[%emt 0:03:20]} 7. Bb5 {[%emt 0:01:12]} Bb6 {[%emt 0:06:36]} 8. O-O {[%emt 0:02:36]} O-O {[%emt 0:02:05]} 9. f4 {[%emt 0:05:13]} Nxd4 {[%emt 0:07:26]} 10. Bxd4 {[%emt 0:04:57]} Bxd4+ {[%emt 0:02:00]} 11. cxd4 {[%emt 0:00:14]} d5 {[%emt 0:03:00]} 12. e5 {[%emt 0:08:18]} Qb6 {[%emt 0:00:20]} 13. Nc3 {[%emt 0:07:39]} c5 {[%emt 0:21:06]} 14. Be2 {[%emt 0:13:32]} cxd4 {[%emt 0:07:32]} 15. Na4 {[%emt 0:01:26]} Qa5 {[%emt 0:00:07]} 16. Rc1 {[%emt 0:10:02]} b6 {[%emt 0:07:31]} 17. b3 {[%emt 0:15:52]} Nf5 {[%emt 0:01:32]} 18. Rf3 {[%emt 0:02:08]} Bd7 {[%emt 0:03:04]} 19. g4 {[%emt 0:00:23]} Ne3 {[%emt 0:01:52]} 20. Qxd4 {[%emt 0:00:26]} Nxg4 {[%emt 0:00:10]} 21. Rg3 {[%emt 0:09:27]} Nh6 {[%emt 0:02:41]} 22. Bd3 {[%emt 0:01:23]} Bf5 {[%emt 0:10:26]} 23. e6 {[%emt 0:02:19]} g6 {[%emt 0:01:00]} 24. e7 {[%emt 0:03:33]} Rfe8 {[%emt 0:00:39]} 25. Qe5 {[%emt 0:01:57]} Qd2 {[%emt 0:02:28]} 26. Qe1 {[%emt 0:03:47]} Qxf4 {[%emt 0:00:25]} 27. Bb5 {[%emt 0:00:18]} Rxe7 {[%emt 0:00:08]} 28. Qxe7 {[%emt 0:00:11]} Qxc1+ {[%emt 0:00:08]} 29. Bf1 {[%emt 0:00:16]} d4 {[%emt 0:09:56]} 0-1

[Event "Navidad Barcelona IM2 2024"]
[Site "Barcelona"]
[Date "2024.12.28"]
[Round "5.3"]
[White "Ayats Llobera, Gerard"]
[Black "Cruz, Filemon"]
[Result "1-0"]
[ECO "B48"]
[WhiteElo "2451"]
[BlackElo "2234"]
[Annotator "RC"]
[PlyCount "77"]
[EventDate "2024.12.26"]
[EventCountry "ESP"]
[SourceTitle "playchess.com"]
[Source "ChessBase"]
[SourceQuality "1"]
[TimeControl "5400+30"]

1. e4 {[%emt 0:00:04]} c5 {[%emt 0:04:23]} 2. Nf3 {[%emt 1:31:26]} e6 {[%emt 0:00:49]} 3. d4 {[%emt 0:00:00]} cxd4 {[%emt 0:00:06]} 4. Nxd4 {[%emt 0:00:00]} a6 {[%emt 0:02:55]} 5. Nc3 {[%emt 0:00:00]} Qc7 {[%emt 0:00:17]} 6. Bd3 {[%emt 0:00:00]} Bd6 {[%emt 0:02:34]} 7. Be3 {[%emt 0:00:00]} Nf6 {[%emt 0:03:26]} 8. h3 {[%emt 0:00:00]} Nc6 {[%emt 0:01:42]} 9. O-O {[%emt 0:00:00]} Bh2+ {[%emt 0:07:21]} 10. Kh1 {[%emt 0:00:00]} Bf4 {[%emt 0:00:17]} 11. Qd2 {[%emt 0:00:00]} Bxe3 {[%emt 0:06:43]} 12. Qxe3 {[%emt 0:00:00]} d6 {[%emt 1:05:57]} 13. Nxc6 {[%emt 0:00:00]} bxc6 {[%emt 0:00:00]} 14. f4 {[%emt 0:00:00]} Nd7 {[%emt 0:00:00]} 15. Rae1 {[%emt 0:00:00]} O-O {[%emt 0:00:00]} 16. e5 {[%emt 0:00:00]} d5 {[%emt 0:00:00]} 17. Na4 {[%emt 0:00:00]} Qa7 {[%emt 0:00:00]} 18. Qxa7 {[%emt 0:00:00]} Rxa7 {[%emt 0:00:00]} 19. c4 {[%emt 0:00:00]} Rb7 {[%emt 0:00:00]} 20. cxd5 {[%emt 0:00:00]} cxd5 {[%emt 0:00:00]} 21. Rc1 {[%emt 0:00:00]} Rb4 {[%emt 0:04:30]} 22. b3 {[%emt 0:00:00]} g5 {[%emt 0:00:00]} 23. g3 {[%emt 0:00:00]} Kg7 {[%emt 0:00:00]} 24. Rc7 {[%emt 0:00:00]} Rd4 {[%emt 0:00:00]} 25. Nb2 {[%emt 0:00:00]} Nb8 {[%emt 0:00:00]} 26. fxg5 {[%emt 0:00:00]} Bd7 {[%emt 0:00:00]} 27. Rf4 {[%emt 0:00:00]} Rxf4 {[%emt 0:00:00]} 28. gxf4 {[%emt 0:13:00]} h6 {[%emt 0:00:00]} 29. gxh6+ {[%emt 0:00:00]} Kxh6 {[%emt 0:00:00]} 30. Kg2 {[%emt 0:00:00]} f6 {[%emt 0:00:00]} 31. exf6 {[%emt 0:00:00]} Rxf6 {[%emt 0:00:00]} 32. Kg3 {[%emt 0:00:00]} Rf7 {[%emt 0:00:00]} 33. Nd1 {[%emt 0:00:00]} Rg7+ {[%emt 0:00:00]} 34. Kf2 {[%emt 0:00:00]} Kh5 {[%emt 0:00:59]} 35. Ne3 {[%emt 0:00:00]} Kh4 {[%emt 0:00:24]} 36. Be2 {[%emt 0:00:00]} Rf7 {[%emt 0:02:16]} 37. Ng2+ {[%emt 0:00:00]} Kxh3 {[%emt 0:00:20]} 38. Rc1 {[%emt 0:00:00]} Kh2 {[%emt 0:00:10]} 39. Bf3 {[%emt 0:00:00]} 1-0

[Event "Navidad Barcelona IM2 2024"]
[Site "Barcelona"]
[Date "2024.12.28"]
[Round "5.4"]
[White "Gonzalez, Raul Omar"]
[Black "Abreu Sanchez, Leonel Jesus"]
[Result "1-0"]
[ECO "A16"]
[WhiteElo "2131"]
[BlackElo "1857"]
[Annotator "RC"]
[PlyCount "63"]
[EventDate "2024.12.26"]
[EventCountry "ESP"]
[SourceTitle "playchess.com"]
[Source "ChessBase"]
[SourceQuality "1"]
[TimeControl "5400+30"]

1. c4 {[%emt 0:00:03]} Nf6 {[%emt 0:00:21]} 2. Nc3 {[%emt 0:00:12]} b6 {[%emt 0:00:06]} 3. d3 {[%emt 0:02:16]} Bb7 {[%emt 0:00:18]} 4. e4 {[%emt 0:00:46]} e5 {[%emt 1:31:45]} 5. Nf3 {[%emt 0:01:41]} d6 {[%emt 0:00:00]} 6. g3 {[%emt 0:01:27]} Be7 {[%emt 0:00:00]} 7. h4 {[%emt 0:00:55]} Nbd7 {[%emt 0:00:00]} 8. Bh3 {[%emt 0:00:14]} c6 {[%emt 0:00:00]} 9. O-O {[%emt 0:00:50]} O-O {[%emt 0:00:00]} 10. Re1 {[%emt 0:00:46]} Qc7 {[%emt 0:00:00]} 11. d4 {[%emt 0:13:28]} exd4 {[%emt 0:00:00]} 12. Nxd4 {[%emt 0:00:58]} Ne5 {[%emt 0:00:00]} 13. b3 {[%emt 0:00:13]} Rfe8 {[%emt 0:00:00]} 14. Nf5 {[%emt 0:04:34]} h5 {[%emt 0:00:00]} 15. Bg5 {[%emt 0:00:46]} Rad8 {[%emt 0:00:00]} 16. Rc1 {[%emt 0:01:43]} Bc8 {[%emt 0:00:00]} 17. Kg2 {[%emt 0:08:45]} Bxf5 {[%emt 0:00:00]} 18. Bxf5 {[%emt 0:02:39]} g6 {[%emt 0:00:00]} 19. Bh3 {[%emt 0:00:03]} Qb7 {[%emt 0:00:00]} 20. f4 {[%emt 0:06:23]} Neg4 {[%emt 0:00:00]} 21. Qf3 {[%emt 0:00:36]} a6 {[%emt 0:00:00]} 22. Rcd1 {[%emt 0:00:29]} Qc7 {[%emt 0:00:00]} 23. a4 {[%emt 0:00:46]} Kg7 {[%emt 0:00:00]} 24. Re2 {[%emt 0:01:35]} Qb8 {[%emt 0:00:00]} 25. Rde1 {[%emt 0:01:02]} Qc8 {[%emt 0:00:00]} 26. Nd1 {[%emt 0:07:14]} Nh7 {[%emt 0:00:00]} 27. Bxe7 {[%emt 0:00:23]} Rxe7 {[%emt 0:00:00]} 28. Nf2 {[%emt 0:00:22]} b5 {[%emt 0:00:04]} 29. Bxg4 {[%emt 0:01:05]} hxg4 {[%emt 0:00:09]} 30. Nxg4 {[%emt 0:00:10]} bxc4 {[%emt 0:00:46]} 31. bxc4 {[%emt 0:00:08]} Qe6 {[%emt 0:00:07]} 32. f5 {[%emt 0:00:46]} 1-0